Cogmind - Beta 9.1 @@@ ROGUE MODE // 2019.10.30 @ 01:25:21 // Halloween2019/Abominations Player: Basil Result: Destroyed by Lesser Abomination with Beam Rifle Performance ------------- Evolutions (0) 0 Regions Visited (1) 200 Robots Destroyed (6) 30 Value Destroyed (334) 334 Prototype IDs (0) 0 Alien Tech Used (0) 0 Bonus (0) 0 TOTAL SCORE: 564 Bonus ------- None Cogmind --------- Core Integrity 0/250 Matter 300/300 Energy 248/250 System Corruption 0% Temperature Cool (10) Location -10/Materials Parts ------- Power (1) Ion Engine Propulsion (2) Aluminum Leg Utility (2) Improved Heat Sink Small Storage Unit Weapon (2) Inventory (6) Light Ion Engine Light Treads Light Treads Peak State ------------ Power Ion Engine Propulsion Aluminum Leg Aluminum Leg Utility Improved Heat Sink Small Storage Unit Weapon Assault Rifle Inventory Light Ion Engine Light Treads Light Treads [Rating: 8] Favorites ----------- Power Ion Engine Engine Ion Engine Propulsion Light Treads Treads Light Treads Leg Aluminum Leg Utility Small Storage Unit Device Improved Heat Sink Storage Small Storage Unit Weapon Medium Laser Energy Gun Medium Laser Ballistic Gun Assault Rifle Ballistic Cannon Light Cannon Build | -11 -10 ------- Run | Scr Mat Slots Evolved . | . . Power . | . . Propulsion . | . . Utility . | . . Weapon . | . . Parts Attached 11 | 6 5 Power 1 | 1 . Engine 1 | 1 . Core . | . . Reactor . | . . Propulsion 4 | 2 2 Treads 2 | 2 . Leg 2 | . 2 Wheel . | . . Hover . | . . Flight . | . . Utility 2 | 1 1 Device 1 | . 1 Storage 1 | 1 . Processor . | . . Hackware . | . . Protection . | . . Artifact . | . . Weapon 4 | 2 2 Energy Gun 2 | 2 . Energy Cannon . | . . Ballistic Gun 1 | . 1 Ballistic Cannon 1 | . 1 Launcher . | . . Special Weapon . | . . Impact Weapon . | . . Slashing Weapon . | . . Piercing Weapon . | . . Special Melee Weapon . | . . Unidentified Prototypes . | . . Parts Lost 4 | . 4 Power . | . . Propulsion 1 | . 1 Utility . | . . Weapon 3 | . 3 Highest Loss Streak 2 | . 2 Average Slot Usage (%) 77 | . 77 Engine 14 | . 14 Treads 16 | . 16 Leg 8 | . 8 Device 2 | . 2 Storage 14 | . 14 Energy Gun 15 | . 15 Ballistic Gun 3 | . 3 Ballistic Cannon 1 | . 1 Naked Turns . | . . Heaviest Build 14 | 13 14 Greatest Support 40 | 40 40 Greatest Overweight (x) 2 | . 2 Average Overweight (x) . | . . Largest Inventory Capacity 6 | 6 6 Average Capacity 5 | 5 6 Most Carried 6 | 4 6 Average Carried 3 | 2 3 Final Capacity 6 | 6 6 Final Carried 4 | 4 4 Class Distribution -------------------- 100% | Mutant Dominant Class ---------------- Mutant | -10/Materials Resources | -11 -10 ----------- Run | Scr Mat Matter Collected 367 | 240 127 Remotely . | . . Salvage Created 271 | . 271 Parts 21 | . 21 Haulers Intercepted . | . . Recyclers Shooed . | . . Parts Field Recycled . | . . Retrieved Matter . | . . Parts Self-Destructed . | . . Prevented . | . . Kills | -11 -10 ------- Run | Scr Mat Combat Hostiles Destroyed 5 | . 5 Guns 4 | . 4 Cannons 1 | . 1 Classes Destroyed 3 | . 3 Grunt 1 | . 1 Abomination 4 | . 4 Anomaly 1 | . 1 Best Kill Streak 2 | . 2 Combat Bots Only 2 | . 2 Max Kills in Single Turn 1 | . 1 Gunslinging . | . . Exploded . | . . Melee . | . . Uniques/NPCs Destroyed . | . . Combat | -11 -10 -------- Run | Scr Mat Damage Taken 807 | . 807 Core 251 | . 251 Absorbed by Shields . | . . Core Remaining (%) 100 | 100 . Volleys Fired 32 | . 32 Largest 2 | . 2 Hottest 100 | . 100 Shots Fired 44 | . 44 Gun 41 | . 41 Cannon 3 | . 3 Launcher . | . . Special . | . . Kinetic 23 | . 23 Thermal 21 | . 21 Explosive . | . . Electromagnetic . | . . Robot Hit Streak 7 | . 7 Robot Miss Streak 5 | . 5 Penetration Max . | . . Secondary Targets . | . . Shots Hit Robots 25 | . 25 Core Hits 12 | . 12 Critical Hits 1 | . 1 Critical Kills . | . . Critical Parts Destroyed 1 | . 1 Melee Attacks . | . . Impact . | . . Slashing . | . . Piercing . | . . Sneak Attacks . | . . Combat Hostiles . | . . Follow-up Attacks . | . . Damage Inflicted 334 | . 334 Guns 312 | . 312 Cannons 18 | . 18 Explosions 4 | . 4 Melee . | . . Ramming . | . . Kinetic 192 | . 192 Thermal 138 | . 138 Explosive . | . . Electromagnetic 4 | . 4 Impact . | . . Slashing . | . . Piercing . | . . Highest Corruption . | . . Average Corruption . | . . Corruption Purged . | . . Overload Shots . | . . Overflow Damage . | . . Projectiles . | . . Explosions . | . . Melee . | . . Knockbacks . | . . Impact . | . . Kinetic . | . . Secondary . | . . Self-Inflicted Damage . | . . Shots . | . . Rammed . | . . Targets Rammed . | . . Kicked . | . . Crushed . | . . Highest Temperature 141 | . 141 Average Temperature 58 | . 58 Received Heat Transfer 177 | . 177 Siege Activations . | . . Robots Corrupted . | . . Combat Hostiles . | . . Parts Fried . | . . Impact Corruptions . | . . Robots Melted . | . . Combat Hostiles . | . . Parts Melted . | . . Heat Transferred 258 | . 258 Parts Sabotaged . | . . Parts Stolen . | . . Parts Stripped . | . . Power Chain Reactions . | . . Missiles Intercepted . | . . Alert | -11 -10 ------- Run | Scr Mat Peak Influence 45 | . 45 Average Influence 16 | . 28 Maximum Alert Level . | . . Low Security (%) 100 | . . Level 1 . | . . Level 2 . | . . Level 3 . | . . Level 4 . | . . Level 5 . | . . High Security . | . . Max Security . | . . Squads Dispatched 5 | . 5 Investigation 3 | . 3 Extermination . | . . Reinforcement 2 | . 2 Assault . | . . Garrison . | . . Intercept . | . . Construction Impeded . | . . Haulers Reinforced . | . . Stealth | -11 -10 --------- Run | Scr Mat Distress Signals . | . . Communications Jammed . | . . Distress Signals . | . . Times Spotted 8 | . 8 Peak Tracking Total 4 | . 4 Tactical Retreats . | . . Traps | -11 -10 ------- Run | Scr Mat Traps Triggered 1 | . 1 Indirectly 1 | . 1 Trap Hack Attempts . | . . Triggered . | . . Disarmed . | . . Reprogrammed . | . . Reused . | . . Traps Extracted . | . . Installed . | . . Triggered . | . . Machines | -11 -10 ---------- Run | Scr Mat Machines Disabled 1 | . 1 Max in Single Turn 1 | . 1 Machines Sabotaged . | . . Garrisons Compromised . | . . Overloaded Fab Kills . | . . Fab Network Shutdowns . | . . Hacking | -11 -10 --------- Run | Scr Mat Machines Accessed . | . . Terminals . | . . Fabricators . | . . Repair Stations . | . . Recycling Units . | . . Scanalyzers . | . . Garrison Access . | . . Total Hacks . | . . Successful . | . . Failed . | . . Catastrophic . | . . Database Lockouts . | . . Manual . | . . Terminals . | . . Fabricators . | . . Repair Stations . | . . Recycling Units . | . . Scanalyzers . | . . Garrison Access . | . . Terminal Hacks . | . . Fabricator Hacks . | . . Repair Station Hacks . | . . Recycling Unit Hacks . | . . Scanalyzer . | . . Garrison Access Hacks . | . . Unauthorized Hacks . | . . Terminals . | . . Fabricators . | . . Repair Stations . | . . Recycling Units . | . . Scanalyzers . | . . Garrison Access . | . . Data Cores Recovered . | . . Used . | . . Hacking Detections . | . . Full Trace Events . | . . Feedback Events . | . . Feedback Blocked . | . . Robot Schematics Acquired . | . . Robots Built . | . . Matter . | . . Time . | . . Total Robot Build Rating . | . . Part Schematics Acquired . | . . Parts Built . | . . Matter . | . . Time . | . . Total Part Build Rating . | . . Parts Repaired . | . . Time . | . . Parts Recycled . | . . Recycled Matter . | . . Retrieved Matter . | . . Retrieved Components . | . . Parts Scanalyzed . | . . Part Schematics Acquired . | . . Parts Damaged . | . . Bothacking | -11 -10 ------------ Run | Scr Mat Used RIF Installer . | . . Robots Hacked . | . . Non-combat . | . . Combat . | . . Robot Hacks Applied . | . . Relay Couplers Released . | . . Robots Rewired . | . . Allies Hacked . | . . Hacks Repelled . | . . Allies | -11 -10 -------- Run | Scr Mat Total Allies . | . . Largest Group . | . . Highest-Rated Group . | . . Highest-Rated Ally . | . . Total Orders . | . . Ally Attacks . | . . Total Damage . | . . Kills . | . . Allies Corrupted . | . . Allies Melted . | . . Intel | -11 -10 ------- Run | Scr Mat Robot Analysis Total . | . . Derelict Logs Recovered . | . . Drone Launches . | . . Drone Recoveries . | . . Exploration | -11 -10 ------------- Run | Scr Mat Turns Passed 368 | 147 221 Spaces Moved 187 | 92 95 Core 21 | 16 5 Treads 129 | 76 53 Legs 37 | . 37 Wheels . | . . Hover . | . . Flight . | . . Fastest Speed 50 | 50 120 Average Speed 142 | 140 143 Slowest Speed 160 | 160 160 Overloaded Moves . | . . Propulsion Burnouts . | . . Robots Hopped . | . . Cave-ins Triggered . | . . Exploration Rate (%) 15 | 5 26 Regions Visited 1 Branch Regions . Pre-discovered Areas . | . . Known Exits Taken . | . . Unknown Exits Taken 1 | 1 . Scrap Searched . | . . Spaces Dug . | . . Terrain Destroyed . | . . Melee . | . . Projectile . | . . AOE . | . . Actions | -11 -10 --------- Run | Scr Mat Total 247 | 111 136 Wait . | . . Move 186 | 91 95 Hop . | . . Pick Up 16 | 12 4 Fast Attach . | . . Attach 11 | 6 5 Detach . | . . Swap . | . . Drop 2 | 2 . Fire 32 | . 32 Melee . | . . Ram . | . . Kick . | . . Crush . | . . Escape Stasis . | . . Rewire . | . . Trap . | . . Miscellaneous . | . . Route ------- -11/Scrapyard -10/Materials History --------- Turn | Location | Event 7 | -11/Scrapyard | Discovered new exit (range 15) 148 | -11/Scrapyard | Entered Materials 304 | -10/Materials | Build established: Mutant 305 | -10/Materials | Core integrity fell below 50% 312 | -10/Materials | Discovered new exit (range 15) 344 | -10/Materials | Core integrity fell below 20% 369 | -10/Materials | Destroyed by Lesser Abomination with Beam Rifle Last Messages --------------- Lesser Abomination spits out Wheel. Lesser Abomination feeds off Hungry Anomaly, taking Wheel. Hungry Anomaly eats Lgt. Cannon. Destroyed Weight Redist. System. Lesser Abomination absorbs Med. Matter Pod. Hungry Anomaly eats Structural Scanner. Hungry Anomaly eats Wheel. Hungry Anomaly eats Tractor Beam. Hungry Anomaly eats Hcp. Storage Unit. Aluminum Leg destroyed. Hungry Anomaly eats Sensor Array. Assault Rifle destroyed. Hungry Anomaly eats Terrain Scanner. Hungry Anomaly eats Com. Wheel. Acquired 6 matter. Hungry Anomaly eats Wheel. Hungry Anomaly eats Structural Scanner. Hungry Anomaly eats Signal Interpreter. Acquired 21 matter. Lesser Abomination destroyed. Map ----- +----------------------------------------------------+ | ???????????????? % ???? #????????????????? | | ???????????????# < "??? #????????????????? | | ???????????????# ??? #????????????????? | | ???????????????# "???? ?????????????????? | | ???????????????# ????? ???????????????????? | | ??????######????# #???###/###??????????????????? | | ??????# ##### ##### #?#????????????????? | | ??????# % #"##???????????????? | | ??????# % +???????????????? | | ??????# ^ ####???????????????? | | ??????# ^ % ""#????????????????? | | ??????# ^ "#????????????????? | | ?????##% ! ""#????????????????? | | ?????# % ########???????????? | | ?"" + #########???? | | ?????# ## #???? | | ?????###+########"### ##"" #???? | | ????????????#!! # ##"T #???? | | ????????????#! + ##"" #???? | | ????????????#!! ! # ########## ## #???? | | ????????????######### #???????## ## #???? | | ??????????????????####+#####????# ###/####???? | | ??????????????????# % #????# #???? | | ??????????????????# """A #????# #???? | | ??????????????????# """ #????# #???? | | ??????????????????# """@ #????# ###+####???? | | ??????????????????# #????####### #???? | | ??????????????????# """ #??????????# |! #???? | | ??????????????????# """ #??????????# ! "#???? | | ??????????????????# """ #??????????# %= T#???? | | ??????????????????# #??????????# = "#???? | | ??????????????????##########??????????# #???? | | ??????????????????????????????????????########???? | | ?????????????????????????????????????????????????? | | ?????????????????????????????????????????????????? | | ?????????????????????????????????????????????????? | | ?????????????????????????????????????????????????? | | ?????????????????????????????????????????????????? | | ?????????????????????????????????????????????????? | | | | | | | | | | | | | | | | | | | | | | | +----------------------------------------------------+ Best States ------------- Heat Dissipation 39 Energy Generation 10 Energy Capacity 250 Matter Stores 300 Matter Capacity 300 Sight Range 16 Terrain Scan Density 10 Evasion (%) 50 Recoil Reduction 2 Item Schematics ----------------- None Robot Schematics ------------------ None Fabricated ------------ Nothing Alien Tech Used ----------------- None Achievements -------------- None Challenges ------------ None Game ------ Seed FactoryBarrageRail Manual? 0 Play Time 00:17:55 Cumulative 8.6 hours Start 2019.10.29 @ 23:44:14 End 2019.10.30 @ 01:25:21 Sessions 1 Manual Loads 0 Difficulty Rogue Special Mode Halloween2019/Abominations Game No. 9 Rogue 9 Adventurer 0 Explorer 0 Win Type - Total 0 Types 0/0/0/0/0/0/0 Lore% 9 Gallery% 10 Achievement% 7 Wizard Run 0 Options --------- ASCII 0 Keyboard 0 Movement Mouse Keybinds 0 Fullscreen 0 Font 16/SmallcapsGlow Map View 76x50 Tactical HUD 0 Map Filters NONE Filters NONE Steam 1 RUN: 83fd49a8-43a8-4269-b6a6-291b2bb7f5a8